Cogmind - Beta 13 @@@ ROGUE MODE // 2024.03.18 @ 18:54:18 Player: Waste Result: Destroyed by IU-P5V(R) with Subdweller Laser Performance ------------- Evolutions (0) 0 Regions Visited (2) 400 Robots Destroyed (17) 85 Value Destroyed (490) 490 Prototype IDs (2) 40 Alien Tech Used (0) 0 Bonus (0) 0 TOTAL SCORE: 1015 Bonus ------- None Cogmind --------- Core Integrity 0/250 Matter 289/300 Energy 91/100 System Corruption 0% Temperature Cool (6) Movement Walking (260) Ox2 Location -10/Subcaves Parts ------- > --- POWER (1) -------- (None) > --- PROPULSION (2) --- Aluminum Leg > --- UTILITY (2) ------ Large Storage Unit Weapon Shielding > --- WEAPON (2) ------- Subdweller Laser Subdweller Machine Gun > --- INVENTORY (15) --- Ion Engine Ion Engine Light Treads Light Treads Light Treads Aluminum Leg Aluminum Leg Compact Wheel Compact Wheel Improved Heat Sink High-capacity Matter Pod (142) Subdweller Laser Heavy Battle Rifle Grenade Launcher Grenade Launcher Peak State ------------ > --- POWER ------------ Ion Engine > --- PROPULSION ------- Aluminum Leg Aluminum Leg > --- UTILITY ---------- Large Storage Unit Weapon Shielding > --- WEAPON ----------- Subdweller Laser Subdweller Laser > --- INVENTORY -------- Ion Engine Ion Engine Light Treads Light Treads Light Treads Aluminum Leg Aluminum Leg Compact Wheel Compact Wheel Improved Heat Sink High-capacity Matter Pod Subdweller Machine Gun Heavy Battle Rifle Grenade Launcher Grenade Launcher [Rating: 11] Favorites ----------- Power Ion Engine Engine Ion Engine Propulsion Aluminum Leg Leg Aluminum Leg Utility Large Storage Unit Storage Large Storage Unit Protection Weapon Shielding Weapon Medium Laser Energy Gun Medium Laser Ballistic Gun Assault Rifle Ballistic Cannon Light Cannon Build | -11 -10 -10 ------- Run | Yrd Mat Sub Slots Evolved . | . . . Power . | . . . Propulsion . | . . . Utility . | . . . Weapon . | . . . Parts Attached 15 | . 11 4 Power 2 | . 2 . Engine 2 | . 2 . Core . | . . . Reactor . | . . . Propulsion 3 | . 3 . Treads . | . . . Leg 3 | . 3 . Wheel . | . . . Hover . | . . . Flight . | . . . Utility 3 | . 3 . Device . | . . . Storage 1 | . 1 . Processor . | . . . Hackware . | . . . Protection 2 | . 2 . Artifact . | . . . Weapon 7 | . 3 4 Energy Gun 4 | . 2 2 Energy Cannon . | . . . Ballistic Gun 2 | . 1 1 Ballistic Cannon 1 | . . 1 Launcher . | . . . Special Weapon . | . . . Impact Weapon . | . . . Slashing Weapon . | . . . Piercing Weapon . | . . . Special Melee Weapon . | . . . Unidentified Prototypes . | . . . Parts Lost 3 | . 1 2 Power 1 | . . 1 Propulsion 1 | . . 1 Utility 1 | . 1 . Weapon . | . . . Highest Loss Streak 2 | . 1 2 To Critical Strikes . | . . . Average Slot Usage (%) 99 | . 99 99 Engine 14 | . 14 14 Leg 27 | . 28 27 Storage 14 | . 14 14 Protection 13 | . 13 14 Energy Gun 17 | . 14 26 Ballistic Gun 10 | . 14 . Naked Turns . | . . . Heaviest Build 34 | 13 33 34 Greatest Support 20 | 20 20 20 Greatest Overweight (x) 1 | . 1 1 Average Overweight (x) . | . . 1 Largest Inventory Capacity 15 | . 15 15 Average Capacity 14 | . 14 15 Most Carried 15 | . 15 15 Average Carried 13 | . 12 14 Final Capacity 15 | 8 15 15 Final Carried 15 | 6 15 15 Class Distribution -------------------- 100% | Mutant Dominant Class ---------------- Mutant | -10/Materials Mutant | -10/Subcaves Resources | -11 -10 -10 ----------- Run | Yrd Mat Sub Matter Collected 691 | 200 314 177 Remotely . | . . . Salvage Created 680 | . 559 121 Parts 35 | . 30 5 Haulers Intercepted 1 | . 1 . Recyclers Shooed . | . . . Parts Field Recycled . | . . . Retrieved Matter . | . . . Parts Self-Destructed 8 | . . 8 Prevented . | . . . Kills | -11 -10 -10 ------- Run | Yrd Mat Sub Combat Hostiles Destroyed 15 | . 12 3 Guns 15 | . 12 3 Classes Destroyed 5 | . 4 1 Hauler 1 | . 1 . Recycler 1 | . 1 . Swarmer 3 | . 3 . Grunt 9 | . 9 . Subdweller 3 | . . 3 Best Kill Streak 3 | . 3 2 Combat Bots Only 2 | . 2 2 Max Kills in Single Turn 1 | . 1 1 Gunslinging . | . . . Exploded . | . . . Melee . | . . . Uniques/NPCs Destroyed . | . . . Combat | -11 -10 -10 -------- Run | Yrd Mat Sub Hostile Shots Fired 70 | . 51 19 Missed 12 | . 9 3 Damage Taken 828 | . 467 361 Core 259 | . 113 146 Absorbed by Shields . | . . . Redirected to Shielding 19 | . 6 13 Core Remaining (%) 100 | 100 . . Volleys Fired 66 | . 45 21 Largest 2 | . 2 2 Hottest 120 | . 70 120 Shots Fired 130 | . 89 41 Gun 130 | . 89 41 Cannon . | . . . Launcher . | . . . Special . | . . . Kinetic 48 | . 45 3 Thermal 82 | . 44 38 Explosive . | . . . Electromagnetic . | . . . Robot Hit Streak 13 | . 13 10 Robot Miss Streak 3 | . 3 1 Penetration Max . | . . . Secondary Targets 1 | . . 1 Max Gunslinging Chain 1 | . . 1 Shots Hit Robots 83 | . 63 20 Core Hits 34 | . 28 6 Critical Kills 1 | . . 1 Critical Parts Destroyed . | . . . Critical Strikes 7 | . 6 1 Burn 6 | . 6 . Destroy 1 | . . 1 Melee Attacks . | . . . Impact . | . . . Slashing . | . . . Piercing . | . . . Sneak Attacks . | . . . Combat Hostiles . | . . . Follow-up Attacks . | . . . Damage Inflicted 1132 | . 730 402 Guns 1125 | . 723 402 Cannons . | . . . Explosions . | . . . Melee . | . . . Ramming 7 | . 7 . Kinetic 323 | . 278 45 Thermal 802 | . 445 357 Explosive . | . . . Electromagnetic . | . . . Impact . | . . . Slashing . | . . . Piercing . | . . . Highest Corruption . | . . . Average Corruption . | . . . Corruption Purged . | . . . Corruption Blocked . | . . . Overload Shots . | . . . Overflow Damage . | . . . Projectiles . | . . . Explosions . | . . . Melee . | . . . Knockbacks . | . . . Impact . | . . . Kinetic . | . . . Secondary . | . . . Self-Inflicted Damage . | . . . Shots . | . . . Rammed . | . . . Targets Rammed 1 | . 1 . Kicked 1 | . 1 . Crushed . | . . . Highest Temperature 264 | . 264 27 Average Temperature 73 | . 76 17 Received Heat Transfer 309 | . 246 63 Siege Activations . | . . . Robots Corrupted . | . . . Combat Hostiles . | . . . Parts Fried . | . . . Impact Corruptions . | . . . Robots Melted . | . . . Combat Hostiles . | . . . Parts Melted 3 | . 3 . Heat Transferred 2189 | . 1739 450 Parts Sabotaged . | . . . Parts Stolen . | . . . Parts Stripped . | . . . Power Chain Reactions . | . . . Alert | -11 -10 -10 ------- Run | Yrd Mat Sub Peak Influence 163 | . 163 . Initial . | . . . Average 57 | . 57 . Maximum Alert Level . | . . . Low Security (%) 100 | . 100 . Level 1 . | . . . Level 2 . | . . . Level 3 . | . . . Level 4 . | . . . Level 5 . | . . . High Security . | . . . Max Security . | . . . Squads Dispatched 3 | . 3 . Investigation 2 | . 2 . Extermination . | . . . Reinforcement 1 | . 1 . Assault . | . . . Garrison . | . . . Intercept . | . . . Searches Triggered . | . . . Construction Impeded . | . . . Haulers Reinforced . | . . . Active Scanning Responses . | . . . Cargo Convoy Interrupts . | . . . Stealth | -11 -10 -10 --------- Run | Yrd Mat Sub Distress Signals 1 | . 1 . Communications Jammed . | . . . Distress Signals . | . . . Times Spotted 27 | . 22 5 Peak Tracking Total 3 | . 3 2 Tactical Retreats 3 | . 3 . Traps | -11 -10 -10 ------- Run | Yrd Mat Sub Traps Triggered 1 | . 1 . Indirectly . | . . . Trap Hack Attempts . | . . . Triggered . | . . . Disarmed . | . . . Reprogrammed . | . . . Reused . | . . . Traps Extracted . | . . . Installed . | . . . Triggered 2 | . . 2 Machines | -11 -10 -10 ---------- Run | Yrd Mat Sub Machines Disabled . | . . . Max in Single Turn . | . . . Machines Repaired . | . . . Machines Dismantled . | . . . Machines Sabotaged . | . . . Overloaded Fab Kills . | . . . Hacking | -11 -10 -10 --------- Run | Yrd Mat Sub Machines Accessed 5 | . 4 1 Terminals 4 | . 4 . Fabricators . | . . . Repair Stations . | . . . Recycling Units . | . . . Scanalyzers . | . . . Garrison Access . | . . . Total Hacks 12 | . 11 1 Successful 4 | . 3 1 Failed 8 | . 8 . Catastrophic 2 | . 2 . Database Lockouts . | . . . Manual 7 | . 7 . Terminals 11 | . 11 . Fabricators . | . . . Repair Stations . | . . . Recycling Units . | . . . Scanalyzers . | . . . Garrison Access . | . . . Terminal Hacks 4 | . 3 1 Record 1 | . . 1 Robot Analysis 2 | . 2 . Prototype ID Bank 1 | . 1 . Fabricator Hacks . | . . . Repair Station Hacks . | . . . Recycling Unit Hacks . | . . . Scanalyzer . | . . . Garrison Access Hacks . | . . . Unauthorized Hacks . | . . . Terminals . | . . . Fabricators . | . . . Repair Stations . | . . . Recycling Units . | . . . Scanalyzers . | . . . Garrison Access . | . . . Data Cores Recovered . | . . . Used . | . . . Hacking Detections 4 | . 4 . Full Trace Events 1 | . 1 . Feedback Events . | . . . Feedback Blocked . | . . . Robot Schematics Acquired . | . . . Robots Built . | . . . Authchips . | . . . Time . | . . . Total Robot Build Rating . | . . . Part Schematics Acquired . | . . . Parts Built . | . . . Authchips . | . . . Time . | . . . Total Part Build Rating . | . . . Parts Repaired . | . . . Time . | . . . Parts Recycled . | . . . Recycled Matter . | . . . Retrieved Matter . | . . . Retrieved Components . | . . . Parts Scanalyzed . | . . . Part Schematics Acquired . | . . . Parts Damaged . | . . . Bothacking | -11 -10 -10 ------------ Run | Yrd Mat Sub Used RIF Installer . | . . . Robots Hacked . | . . . Non-combat . | . . . Combat . | . . . Robot Hacks Applied . | . . . Relay Couplers Released . | . . . Fabnet Peak Effective % . | . . . Robots Rewired . | . . . Allies Hacked . | . . . Hacks Repelled . | . . . Allies | -11 -10 -10 -------- Run | Yrd Mat Sub Total Allies . | . . . Largest Group . | . . . Highest-Rated Group . | . . . Highest-Rated Ally . | . . . Total Orders . | . . . Ally Attacks . | . . . Total Damage . | . . . Kills . | . . . Allies Corrupted . | . . . Allies Melted . | . . . Intel | -11 -10 -10 ------- Run | Yrd Mat Sub Robot Analysis Total 2 | . 2 . Derelict Logs Recovered . | . . . Drone Launches . | . . . Drone Recoveries . | . . . Exploration | -11 -10 -10 ------------- Run | Yrd Mat Sub Turns Passed 2628 | . 1968 660 Spaces Moved 984 | 1 685 298 Core . | . . . Treads . | . . . Legs 984 | 1 685 298 Wheels . | . . . Hover . | . . . Flight . | . . . Fastest Speed 120 | 120 120 190 Average Speed 188 | 120 187 190 Slowest Speed 190 | 120 190 190 Overloaded Moves . | . . . Propulsion Burnouts . | . . . Robots Hopped . | . . . Cave-ins Triggered . | . . . Exploration Rate (%) 37 | 2 92 17 Regions Visited 2 Branch Regions 1 Pre-discovered Areas 1 | . . 1 Known Exits Taken . | . . . Unknown Exits Taken 2 | 1 1 . Scrap Searched 3 | . . 3 Spaces Dug . | . . . Terrain Destroyed . | . . . Melee . | . . . Projectile . | . . . AOE . | . . . Terrain Rammed . | . . . Walls Destroyed . | . . . Machines Disabled . | . . . Actions | -11 -10 -10 --------- Run | Yrd Mat Sub Total 1639 | . 1288 351 Wait 548 | . 528 20 Move 982 | . 684 298 Hop . | . . . Pick Up 12 | . 10 2 Fast Attach 4 | . 2 2 Attach 1 | . 1 . Detach 3 | . 1 2 Swap 10 | . 8 2 Drop 12 | . 8 4 Fire 66 | . 45 21 Melee . | . . . Ram . | . . . Kick 1 | . 1 . Crush . | . . . Escape Stasis . | . . . Rewire . | . . . Trap . | . . . Miscellaneous . | . . . Route ------- -11/Scrapyard -10/Materials (discovered 4 exits: [*Mat x2] / [*Min] / *Sub) -10/Subcaves (discovered 1 exit: [*Mat]) History --------- Turn | Location | Event 1 | -11/Scrapyard | Discovered new exit (range 0) 1 | -11/Scrapyard | Entered Materials 317 | -10/Materials | Build established: Mutant 321 | -10/Materials | Discovered new exit (range 4) 1078 | -10/Materials | Discovered new exit (range 3) 1354 | -10/Materials | Discovered new exit (range 9) 1945 | -10/Materials | Discovered new exit (range 8) 1969 | -10/Materials | Entered Subcaves 2001 | -10/Subcaves | Shifting Twisted Machinery released Flamer 2016 | -10/Subcaves | Shifting Twisted Machinery released Sub. Machine Gun 2017 | -10/Subcaves | A swath of the cavern ceiling suddenly collapsed 2149 | -10/Subcaves | Visited Clippyterm 2154 | -10/Subcaves | Learned location of Section 7 (-2) 2375 | -10/Subcaves | Discovered new exit (range 5) 2397 | -10/Subcaves | Core integrity fell below 50% 2512 | -10/Subcaves | Core integrity fell below 20% 2629 | -10/Subcaves | Destroyed by IU-P5V(R) with Subdweller Laser Last Messages --------------- 02401_ Y7-9NL(R) destroyed. 02408_ Acquired 31 matter. 02449_ Searching scrap... 02449_ Found Sub. Power Source. 02449_ Found 24 Matter. 02450_ Acquired 24 matter. 02451_ Searching scrap... 02451_ Found Hvy. Battle Rifle. 02451_ Found 17 Matter. 02452_ Acquired 17 matter. 02455_ Dropped Lgt. Cannon. 02456_ Acquired Hvy. Battle Rifle. 02508_ JI-IMU(R) destroyed. 02508_ Switching to secondary target: P1-43E(R). 02518_ P1-43E(R) destroyed. 02521_ Acquired 58 matter. 02523_ Acquired 32 matter. 02616_ Sub. Laser shoots sparks and powers down. 02619_ Aluminum Leg destroyed. 02627_ Ion Engine destroyed. Map ----- +----------------------------------------------------+ | ?????????????????????????????????????????????????? | | ?????????????????????????????????????????????????? | | ?????????????????????????????????????????????????? | | ?????????????????????????????????????????????????? | | ?????????????????????????????????????????????????? | | ?????????????????????????????????????????????????? | | ?????????????????????????????????????????????????? | | ?????????????????????????????????????????????????? | | ?????????????????????????????????????????????????? | | ?????????????????????????????????????????????????? | | ?????????????????????????????????????????????????? | | ?????????????????????????????????????????????????? | | ??????????????????? ????????????????????????????? | | ??????????????????? ???????????????????????????? | | ??????????????????? ???????????????????????????? | | ???????????????????# ???????????????????????????? | | ???????????????????? ####???????????????????????? | | ???????????????????? ????????????????????????? | | ???????????????????? ?????????? ?????????????? | | ????????????????????# ????????? ??????????????? | | ????????????????????# ???????? ??????????????? | | ????????????????????? ???????? #????#?????????? | | ????????????????????## ???????# ##?? #??#??????? | | ????????????????????# #???##### #? ## ?????? | | ????????????????????## ##### # ?????? | | ????????????????????# #@ ## #????????? | | ????????????????????# R ###????????? | | ??????????######????# # ## #"##???????? | | ??????????#* ]"##???##### # # #???#"" ####????? | | ###???????##" & #???????##### #??##" ##???? | | # ##??????#### #???######### ####""" #???? | | # ####???# "##"## ## # ##"""" #???? | | # ##?### #### *&! """"" ##???? | | ?# ### " "## < =& """"" ##????? | | ### # # ! & "" "" ####?????? | | ## =#### ##### # """" #????????? | | & ##???## " #????????? | | # #?????# ###"" " ##????????? | | ## ## #?????#####?####" ##?????????? | | ?## ###### ## #??????????????## ##??????????? | | ??###????##########???????????????####???????????? | | ?????????????????????????????????????????????????? | | ?????????????????????????????????????????????????? | | ?????????????????????????????????????????????????? | | ?????????????????????????????????????????????????? | | ?????????????????????????????????????????????????? | | ?????????????????????????????????????????????????? | | ?????????????????????????????????????????????????? | | ?????????????????????????????????????????????????? | | ?????????????????????????????????????????????????? | +----------------------------------------------------+ Best States ------------- Heat Dissipation 25 Energy Generation 10 Energy Capacity 250 Matter Stores 300 Matter Capacity 300 Sight Range 16 Terrain Scan Density 10 Armor Coverage 150 Weapon Shielding 33 Evasion (%) 55 Item Schematics ----------------- None Robot Schematics ------------------ None Fabricated ------------ Nothing Alien Tech Used ----------------- None Achievements -------------- None Challenges ------------ None Game ------ Seed SigixReactionBuckler Manual? 0 Play Time 00:11:52 Cumulative 165.1 hours Start 2024.03.18 @ 18:45:10 End 2024.03.18 @ 18:54:18 Sessions 1 Manual Loads 0 Difficulty Rogue Special Mode None Game No. 229 Rogue 229 Adventurer 0 Explorer 0 Win Type - Total 3 Types 2/0/0/1/0/0/0/0/0 Lore% 63 Gallery% 72 Achievement% 65 Wizard Run 0 Options --------- Layout 0 ASCII 0 Keyboard 0 Movement Numpad Keybinds 0 Fullscreen 1 Font 18/SmallcapsGlow Map View 76x50 Zoom Use 0% Tactical HUD 1 Map Filters NONE Filters NONE Steam 1 RUN: d10ab1c6-03a2-44b0-bb06-9b3aad95089a